Cogmind - Beta 14 *** ADVENTURER MODE // 2025.01.09 @ 00:00:27 Player: core_nxt Result: Destroyed by 6O-YOB(E) with Overtuned Barrage Gun Performance ------------- Evolutions (0) 0 Regions Visited (4) 800 Robots Destroyed (48) 240 Value Destroyed (1391) 1391 Prototype IDs (26) 520 Alien Tech Used (0) 0 Bonus (-469) -469 TOTAL SCORE: 2482 Bonus ------- Follower Combat Kills 255 Registered with UFD 300 Friendly Fire -1024 Cogmind --------- Core Integrity 0/250 Matter 111/300 Energy 99/100 System Corruption 0% Temperature Cool (0) Movement Core (200) Ox3 Location -8/Scraptown Parts ------- > --- POWER (1) -------- (None) > --- PROPULSION (2) --- (None) > --- UTILITY (2) ------ Makeshift Medium Armor Plating > --- WEAPON (2) ------- Autogun > --- INVENTORY (5) ---- Surveybot 24 Chip Peak State ------------ > --- POWER ------------ Subdweller Power Source > --- PROPULSION ------- Nuclear Pulse Thruster Nuclear Pulse Thruster > --- UTILITY ---------- Improved Heat Sink Layered Light Armor Plating > --- WEAPON ----------- Autogun Autogun > --- INVENTORY -------- Armored Treads Experimental Sensor Array [Rating: 24] Favorites ----------- Power Improved Ion Engine Engine Improved Ion Engine Power Core Light Nuclear Core Propulsion Aluminum Leg Treads Spiked Treads Leg Aluminum Leg Wheel Subdweller Monowheel Flight Unit Nuclear Pulse Thruster Utility High-capacity Storage Unit Device Terrain Scanner Storage High-capacity Storage Unit Processor Signal Interpreter Protection Layered Light Armor Plating Weapon Autogun Energy Gun Small Laser Energy Cannon Subdweller Beam Cannon Ballistic Gun Autogun Launcher Rocket Launcher Special Melee Weapon Datajack Build | -11 -10 -10 -8 -8 ------- Run | Yrd Mat Sub Rec Scr Slots Evolved . | . . . . . Power . | . . . . . Propulsion . | . . . . . Utility . | . . . . . Weapon . | . . . . . Parts Attached 59 | 6 8 22 4 19 Power 6 | 1 1 1 1 2 Engine 5 | 1 . 1 1 2 Core 1 | . 1 . . . Reactor . | . . . . . Propulsion 17 | 2 1 6 3 5 Treads 8 | . . 2 3 3 Leg 3 | 2 1 . . . Wheel 4 | . . 4 . . Hover . | . . . . . Flight 2 | . . . . 2 Utility 19 | 1 2 6 . 10 Device 8 | . 1 2 . 5 Storage 4 | 1 1 2 . . Processor 1 | . . 1 . . Hackware . | . . . . . Protection 6 | . . 1 . 5 Artifact . | . . . . . Weapon 17 | 2 4 9 . 2 Energy Gun 3 | 2 1 . . . Energy Cannon 1 | . . 1 . . Ballistic Gun 8 | . 2 5 . 1 Ballistic Cannon . | . . . . . Launcher 4 | . . 3 . 1 Special Weapon . | . . . . . Impact Weapon . | . . . . . Slashing Weapon . | . . . . . Piercing Weapon . | . . . . . Special Melee Weapon 1 | . 1 . . . Unidentified Prototypes . | . . . . . Parts Lost 9 | . 1 2 1 5 Power 3 | . 1 1 1 . Propulsion 3 | . . 1 . 2 Utility 2 | . . . . 2 Weapon 1 | . . . . 1 Highest Loss Streak 5 | . 1 2 1 5 To Critical Strikes . | . . . . . Average Slot Usage (%) 94 | . 98 90 99 94 Engine 9 | . 7 6 13 13 Core 3 | . 6 7 . . Treads 12 | . . 2 27 22 Leg 9 | . 28 15 . . Wheel 1 | . . 4 . . Flight 1 | . . . . 5 Device 6 | . 12 9 . 2 Storage 11 | . 14 12 14 7 Processor 5 | . . 1 14 7 Protection 1 | . . . . 5 Energy Gun 2 | . 15 . . . Energy Cannon 1 | . . 3 . . Ballistic Gun 24 | . 11 24 28 27 Peak Build Rating 24 | 6 11 16 20 24 Average Rating 14 | 4 9 12 16 19 On Entrance 10 | . 6 11 16 20 Naked Turns . | . . . . . Heaviest Build 57 | 10 51 57 53 53 Greatest Support 62 | 20 20 40 62 62 Greatest Overweight (x) 17 | . 2 17 2 3 Average Overweight (x) . | . 1 1 . . Largest Inventory Capacity 25 | 8 20 20 25 25 Average Capacity 17 | 7 16 18 21 16 Most Carried 25 | 4 9 20 25 25 Average Carried 14 | 2 8 14 19 14 Final Capacity 25 | 8 20 20 25 5 Final Carried 25 | 4 8 18 25 1 Class Distribution -------------------- 60% | Mutant 39% | Commander-Mutant Dominant Class ---------------- Mutant | -10/Materials Mutant | -10/Subcaves Commander-Mutant | -8/Recycling Commander-Mutant | -8/Scraptown Resources | -11 -10 -10 -8 -8 ----------- Run | Yrd Mat Sub Rec Scr Matter Collected 1569 | 201 172 696 258 242 Remotely . | . . . . . Salvage Created 2806 | . 567 664 470 1105 Parts 167 | . 25 45 59 38 Haulers Intercepted . | . . . . . Recyclers Shooed 1 | . . . 1 . Parts Field Recycled . | . . . . . Retrieved Matter . | . . . . . Parts Self-Destructed 15 | . . 15 . . Prevented . | . . . . . Kills | -11 -10 -10 -8 -8 ------- Run | Yrd Mat Sub Rec Scr Combat Hostiles Destroyed 40 | . 9 12 10 9 Guns 38 | . 9 10 10 9 Cannons 2 | . . 2 . . Classes Destroyed 16 | . 3 6 2 5 Worker 1 | . . . . 1 Recycler 2 | . 2 . . . Turret 2 | . . 2 . . Watcher 2 | . 2 . . . Swarmer 7 | . . 5 2 . Grunt 9 | . 9 . . . Duelist 1 | . . . . 1 Protector 2 | . . . 2 . Sentry 6 | . . 1 5 . Programmer 1 | . . . 1 . Artisan 1 | . . 1 . . Cobbler 1 | . . 1 . . Subdweller 6 | . . 6 . . Bolteater 3 | . . . . 3 Explorer 1 | . . . . 1 Guru 2 | . . . . 2 Thug 2 | . . . . 2 Best Kill Streak 10 | . 4 4 4 10 Combat Bots Only 9 | . 2 4 4 9 Max Kills in Single Turn 2 | . 1 2 1 1 Gunslinging . | . . . . . Exploded . | . . . . . Melee . | . . . . . Uniques/NPCs Destroyed 1 | . . . . 1 Triborg (-8/Scraptown) Combat | -11 -10 -10 -8 -8 -------- Run | Yrd Mat Sub Rec Scr Hostile Shots Fired 173 | . 44 65 13 51 Missed 44 | . 10 15 3 16 Damage Taken 1932 | . 349 622 124 837 Core 454 | . 101 101 21 231 Absorbed by Shields 211 | . . . . 211 Ignored by Resistances 568 | . 104 153 36 275 Core Remaining (%) 100 | 100 . . . . Volleys Fired 146 | . 38 66 17 25 Largest 2 | . 2 2 2 2 Hottest 103 | . 80 103 46 46 Shots Fired 233 | . 76 93 36 28 Gun 213 | . 76 73 36 28 Cannon 15 | . . 15 . . Launcher 5 | . . 5 . . Special . | . . . . . Kinetic 143 | . 6 73 36 28 Thermal 85 | . 70 15 . . Explosive 5 | . . 5 . . Electromagnetic . | . . . . . Robot Hit Streak 26 | . 13 18 12 26 Robot Miss Streak 3 | . 2 3 1 1 Penetration Max . | . . . . . Secondary Targets . | . . . . . Shots Hit Robots 179 | . 66 61 24 28 Core Hits 96 | . 28 21 14 33 Critical Kills 1 | . . 1 . . Critical Parts Destroyed . | . . . . . Critical Strikes 104 | . . 27 25 52 Destroy 1 | . . 1 . . Blast 103 | . . 26 25 52 Melee Attacks 1 | . 1 . . . Impact . | . . . . . Slashing . | . . . . . Piercing . | . . . . . Sneak Attacks 1 | . 1 . . . Combat Hostiles . | . . . . . Follow-up Attacks . | . . . . . Damage Inflicted 3455 | . 737 1057 377 1284 Guns 3143 | . 737 745 377 1284 Cannons 312 | . . 312 . . Explosions . | . . . . . Melee . | . . . . . Ramming . | . . . . . Kinetic 2487 | . 81 745 377 1284 Thermal 968 | . 656 312 . . Explosive . | . . . . . Electromagnetic . | . . . . . Impact . | . . . . . Slashing . | . . . . . Piercing . | . . . . . Highest Corruption 1 | . 1 1 1 1 Average Corruption 1 | . 1 1 1 1 Corruption Purged . | . . . . . Corruption Blocked . | . . . . . Effects 58 | . 12 32 13 1 Message Errors 22 | . 4 13 5 . Matter Fused 11 | . 2 6 2 1 Heat Flow Errors 4 | . 1 3 . . Energy Discharges 4 | . 1 1 2 . Parts Rejected 1 | . 1 . . . Parts Fused 1 | . . 1 . . Data Loss (minor) 9 | . 3 4 2 . Data Loss (major) 1 | . . 1 . . Misfires 3 | . . 1 2 . Alerts 1 | . . 1 . . Weapon Failures 1 | . . 1 . . Overload Shots . | . . . . . Overflow Damage . | . . . . . Projectiles . | . . . . . Explosions . | . . . . . Melee . | . . . . . Knockbacks . | . . . . . Impact . | . . . . . Kinetic . | . . . . . Secondary . | . . . . . Self-Inflicted Damage 25 | . . 25 . . Shots 2 | . . 2 . . Rammed . | . . . . . Targets Rammed . | . . . . . Kicked . | . . . . . Crushed . | . . . . . Highest Temperature 272 | . 272 213 41 34 Average Temperature 55 | . 77 40 11 13 Received Heat Transfer 542 | . 261 153 45 83 Effects 2 | . 2 . . . Energy Bleed 2 | . 2 . . . Siege Activations . | . . . . . Robots Corrupted . | . . . . . Combat Hostiles . | . . . . . Parts Fried . | . . . . . Impact Corruptions . | . . . . . Robots Melted . | . . . . . Combat Hostiles . | . . . . . Parts Melted 11 | . 8 1 . 2 Heat Transferred 1882 | . 1475 407 . . Parts Sabotaged . | . . . . . Parts Stolen . | . . . . . Parts Stripped . | . . . . . Power Chain Reactions . | . . . . . Alert | -11 -10 -10 -8 -8 ------- Run | Yrd Mat Sub Rec Scr Peak Influence 139 | . 139 . 102 . Initial . | . . . . . Average 32 | . 42 . 25 . Maximum Alert Level . | . . . . . Low Security (%) 100 | 100 100 . 100 . Level 1 . | . . . . . Level 2 . | . . . . . Level 3 . | . . . . . Level 4 . | . . . . . Level 5 . | . . . . . High Security . | . . . . . Max Security . | . . . . . Squads Dispatched 1 | . 1 . . . Investigation 1 | . 1 . . . Extermination . | . . . . . Reinforcement . | . . . . . Assault . | . . . . . Garrison . | . . . . . Intercept . | . . . . . Searches Triggered . | . . . . . Construction Impeded . | . . . . . Haulers Reinforced . | . . . . . Active Scanning Responses . | . . . . . Cargo Convoy Interrupts . | . . . . . Stealth | -11 -10 -10 -8 -8 --------- Run | Yrd Mat Sub Rec Scr Distress Signals 3 | . 3 . . . Communications Jammed . | . . . . . Distress Signals . | . . . . . Times Spotted 57 | . 16 15 11 15 Peak Tracking Total 6 | . 3 6 5 6 Tactical Retreats 3 | . 1 2 . . Traps | -11 -10 -10 -8 -8 ------- Run | Yrd Mat Sub Rec Scr Traps Triggered 4 | . 2 2 . . Indirectly . | . . . . . Trap Hack Attempts . | . . . . . Triggered . | . . . . . Disarmed . | . . . . . Reprogrammed . | . . . . . Reused . | . . . . . Traps Extracted . | . . . . . Installed . | . . . . . Triggered . | . . . . . Most Traps Carried 1 | . . . . 1 Machines | -11 -10 -10 -8 -8 ---------- Run | Yrd Mat Sub Rec Scr Machines Disabled 4 | . . 3 . 1 Max in Single Turn 2 | . . 2 . 1 Machines Repaired . | . . . . . Machines Dismantled . | . . . . . Machines Sabotaged . | . . . . . Overloaded Fab Kills . | . . . . . Hacking | -11 -10 -10 -8 -8 --------- Run | Yrd Mat Sub Rec Scr Machines Accessed 19 | . 5 2 7 5 Terminals 10 | . 5 . 5 . Fabricators . | . . . . . Repair Stations . | . . . . . Recycling Units 1 | . . . 1 . Scanalyzers . | . . . . . Garrison Access . | . . . . . Total Hacks 97 | . 9 5 46 37 Successful 69 | . 6 5 21 37 Failed 28 | . 3 . 25 . Catastrophic 6 | . 1 . 5 . Database Lockouts . | . . . . . Manual 6 | . 1 . 5 . Terminals 48 | . 9 . 39 . Fabricators . | . . . . . Repair Stations . | . . . . . Recycling Units 2 | . . . 2 . Scanalyzers . | . . . . . Garrison Access . | . . . . . Terminal Hacks 65 | . 6 5 17 37 Record 39 | . . 4 5 30 Part Schematic 6 | . . . 6 . Robot Analysis 7 | . . . . 7 Prototype ID Bank 4 | . 1 . 3 . Level Access Points 1 | . . . 1 . Branch Access Points 2 | . 1 . 1 . Recycling Unit Index 1 | . . . 1 . Locate Traps 1 | . 1 . . . Patrol Status 1 | . 1 . . . Hauler Manifests 2 | . 2 . . . Derelict Proto ID Bank 1 | . . 1 . . Fabricator Hacks . | . . . . . Repair Station Hacks . | . . . . . Recycling Unit Hacks . | . . . . . Scanalyzer . | . . . . . Garrison Access Hacks . | . . . . . Unauthorized Hacks 4 | . . . 4 . Terminals 2 | . . . 2 . Botnet 2 | . . . 2 . Fabricators . | . . . . . Repair Stations . | . . . . . Recycling Units 2 | . . . 2 . Reject 1 | . . . 1 . Mask 1 | . . . 1 . Scanalyzers . | . . . . . Garrison Access . | . . . . . Data Cores Recovered . | . . . . . Used . | . . . . . Hacking Detections 12 | . 3 . 9 . Full Trace Events . | . . . . . Feedback Events . | . . . . . Feedback Blocked . | . . . . . Robot Schematics Acquired . | . . . . . Robots Built . | . . . . . Authchips . | . . . . . Time . | . . . . . Total Robot Build Rating . | . . . . . Part Schematics Acquired 6 | . . . 6 . Parts Built . | . . . . . Authchips . | . . . . . Time . | . . . . . Total Part Build Rating . | . . . . . Parts Repaired . | . . . . . Time . | . . . . . Parts Recycled . | . . . . . Recycled Matter . | . . . . . Retrieved Matter . | . . . . . Retrieved Components . | . . . . . Parts Scanalyzed . | . . . . . Part Schematics Acquired . | . . . . . Parts Damaged . | . . . . . Bothacking | -11 -10 -10 -8 -8 ------------ Run | Yrd Mat Sub Rec Scr Used RIF Installer . | . . . . . Robots Hacked . | . . . . . Non-combat . | . . . . . Combat . | . . . . . Robot Hacks Applied . | . . . . . Relay Couplers Released . | . . . . . Fabnet Peak Effective % . | . . . . . Robots Rewired 22 | . . . 22 . Allies Hacked . | . . . . . Hacks Repelled . | . . . . . Allies | -11 -10 -10 -8 -8 -------- Run | Yrd Mat Sub Rec Scr Total Allies 22 | . . . 22 . Largest Group 21 | . . . 21 20 Highest-Rated Group 357 | . . . 357 353 Highest-Rated Ally 34 | . . . 34 34 Total Orders 1 | . . . . 1 STAY 1 | . . . . 1 Ally Attacks 42 | . . . 6 36 Total Damage 1112 | . . . 171 941 Kills 12 | . . . 3 9 Allies Corrupted 1 | . . . . 1 Allies Melted . | . . . . . Intel | -11 -10 -10 -8 -8 ------- Run | Yrd Mat Sub Rec Scr Robot Analysis Total 7 | . . . . 7 Derelict Logs Recovered 2 | . . 2 . . Drone Launches . | . . . . . Drone Recoveries . | . . . . . Exploration | -11 -10 -10 -8 -8 ------------- Run | Yrd Mat Sub Rec Scr Turns Passed 11043 | 56 1515 4267 1883 3322 Spaces Moved 5845 | 39 672 1701 954 2479 Core 18 | 5 . 7 . 6 Treads 2843 | . . 251 942 1650 Legs 1542 | 34 672 836 . . Wheels 619 | . . 607 12 . Hover . | . . . . . Flight 817 | . . . . 817 Fastest Speed 37 | 50 120 120 130 37 Average Speed 161 | 111 193 212 158 119 Slowest Speed 900 | 120 260 900 160 200 Overloaded Moves . | . . . . . Propulsion Burnouts . | . . . . . Robots Hopped . | . . . . . Cave-ins Triggered . | . . . . . Spacefolds 3 | . . . . 3 Exploration Rate (%) 70 | 3 81 80 98 91 Regions Visited 4 Branch Regions 3 Pre-discovered Areas . | . . . . . Known Exits Taken 2 | . . 1 1 . Unknown Exits Taken 2 | 1 1 . . . Scrap Searched 13 | . . 8 . 5 Spaces Dug . | . . . . . Terrain Destroyed 31 | . . 31 . . Melee . | . . . . . Projectile . | . . . . . AOE 31 | . . 31 . . Terrain Rammed . | . . . . . Walls Destroyed . | . . . . . Machines Disabled . | . . . . . Actions | -11 -10 -10 -8 -8 --------- Run | Yrd Mat Sub Rec Scr Total 7284 | 48 810 2280 1305 2841 Wait 863 | . 82 410 104 267 Move 5838 | 38 671 1700 953 2476 Hop . | . . . . . Pick Up 66 | 4 5 37 13 7 Fast Attach 37 | 6 5 9 2 15 Attach 15 | . 1 8 2 4 Detach 8 | . 1 5 1 1 Swap 7 | . 2 5 . . Drop 93 | . 4 36 7 46 Fire 146 | . 38 66 17 25 Melee 1 | . 1 . . . Ram . | . . . . . Kick . | . . . . . Crush . | . . . . . Escape Stasis . | . . . . . Rewire 206 | . . . 206 . Trap . | . . . . . Miscellaneous 4 | . . 4 . . Route ------- -11/Scrapyard -10/Materials (discovered 6 exits: [*Mat x3] / *Min x2 / *Sub) -10/Subcaves (discovered 3 exits: *Mat x2 / *Rec) -8/Recycling (discovered 2 exits: *Fac / *Scr) -8/Scraptown (discovered 2 exits: *Fac x2) History --------- Turn | Location | Event 7 | -11/Scrapyard | Discovered new exit (range 15) 57 | -11/Scrapyard | Entered Materials 174 | -10/Materials | Discovered new exit (range 11) 311 | -10/Materials | Identified exit to Mines 314 | -10/Materials | Build established: Mutant 907 | -10/Materials | Discovered new exit (range 13) 1250 | -10/Materials | Discovered new exit (range 15) 1559 | -10/Materials | Discovered new exit (range 7) 1572 | -10/Materials | Entered Subcaves 1621 | -10/Subcaves | Disturbed a concealed Subdweller 2205 | -10/Subcaves | Discovered new exit (range 8) 2328 | -10/Subcaves | Curiously followed by a Cobbler waking with a query about "LVR3C" 2341 | -10/Subcaves | Learned 8 Materials zone layouts 2564 | -10/Subcaves | Core integrity fell below 50% 2754 | -10/Subcaves | Visited 4L-MR0's lab 2857 | -10/Subcaves | Found Rainbow Chip 4033 | -10/Subcaves | Visited Clippyterm 4037 | -10/Subcaves | Learned Factory trap positions 4068 | -10/Subcaves | Discovered new exit (range 15) 5142 | -10/Subcaves | Discovered new exit (range 14) 5256 | -10/Subcaves | Identified exit to Recycling 5364 | -10/Subcaves | Core integrity fell below 20% 5435 | -10/Subcaves | Identified exit to Materials 5668 | -10/Subcaves | A swath of the cavern ceiling suddenly collapsed 5839 | -10/Subcaves | Entered Recycling 6045 | -8/Recycling | Identified exit to Factory 6901 | -8/Recycling | Build established: Commander-Mutant 6929 | -8/Recycling | Scanned before Scraplab entrance 7276 | -8/Recycling | P-60 Hacker assimilated allied Bruiser 3a 7642 | -8/Recycling | Entered Scraplab 7660 | -8/Recycling | Discovered new exit (range 3) 7662 | -8/Recycling | Identified exit to Scraptown 7722 | -8/Recycling | Entered Scraptown 7722 | -8/Scraptown | Accompanied by 20 allies 7812 | -8/Scraptown | System corruption cleaned by C-Scrubber 8145 | -8/Scraptown | Discovered exit to Factory (range 5) 8291 | -8/Scraptown | Visited Junk Repository 8300 | -8/Scraptown | Visited Bundlers 8385 | -8/Scraptown | Visited Shadow of the Wyrm 8428 | -8/Scraptown | Visited Comm Corps 8441 | -8/Scraptown | Visited Cyclists 8496 | -8/Scraptown | Visited SPCMW 8508 | -8/Scraptown | Visited Cave Peace 8830 | -8/Scraptown | Visited UFD Registry 8830 | -8/Scraptown | Registered with UFD as "Steamsink" 8861 | -8/Scraptown | Visited Curators Association 8904 | -8/Scraptown | Visited LU-1G1's Boring Crew 8927 | -8/Scraptown | Visited Science Testing Area 9155 | -8/Scraptown | Visited Analyses Database 9189 | -8/Scraptown | Visited Infowarlord's Domain 9224 | -8/Scraptown | Visited Botcube Research 9252 | -8/Scraptown | Visited Derelict Rescue Squad 9313 | -8/Scraptown | Discovered exit to Factory (range 5) 9433 | -8/Scraptown | Visited Chapter 10 9483 | -8/Scraptown | Visited Abandonware Association 9501 | -8/Scraptown | Learned abandonware demo "MELTYB.EXE" 9541 | -8/Scraptown | Visited Modified Component R&D 10288 | -8/Scraptown | Delivered Scrap Shield to a Scientist 10416 | -8/Scraptown | Found Exp. Sensor Array 10463 | -8/Scraptown | Entered Cyclist Reading Room 10949 | -8/Scraptown | Found Surveybot 24 Chip 10990 | -8/Scraptown | Attacked by Scraptown defenders 11011 | -8/Scraptown | Destroyed Triborg 11044 | -8/Scraptown | Destroyed by 6O-YOB(E) with Overtuned Barrage Gun Last Messages --------------- 11036_ YL-K4B(g) suffers critical hit (Blast). 11036_ YL-K4B(g) destroyed. 11037_ Critical hit (Burn: +27). 11037_ Slug penetrates Reinforced Barrier. 11038_ 8O-QLY(p): "Are you the baddie?" 11038_ 8O-QLY(p) suffers critical hit (Blast). 11038_ Destroyed Mak. Hacking Suite. 11038_ 8O-QLY(p) suffers critical hit (Blast). 11038_ 8O-QLY(p) EM Pulse Gun blasted off. 11038_ 8O-QLY(p) Lgt. Deuterium Engine blasted off. 11038_ 8O-QLY(p) suffers critical hit (Blast). 11038_ Destroyed Mak. Hacking Suite. 11040_ 8O-QLY(p) Imp. Heat Sink blasted off. 11040_ 8O-QLY(p) destroyed. 11042_ 3A-NKJ(g) Beamcaster blasted off. 11042_ 3A-NKJ(g) Carbon-fiber Leg blasted off. 11042_ 3A-NKJ(g) Unknown Engine blasted off. 11042_ 3A-NKJ(g) Imp. Heat Sink blasted off. 11042_ 3A-NKJ(g) Carbon-fiber Leg blasted off. 11042_ 3A-NKJ(g) destroyed. Map ----- +----------------------------------------------------+ | #????#[! #[ #???# #???# = = ##???? | | #?# # # [#???# #???# "#???? | | #?# #????? #???# "#???? | | #?# #??????? ??????######## ###???? | | ########## ########### ####???????##### ####### | | #???????#"""" """"""" | | #???????#" | | #???????#" | | #???????#" = | | #???????#" ! | | ############ #### #???#####" = | | ## #?# % #???#"""" """""" | | ## #?# [ **!= #???#"""" """""" | | ##"" "#?#%!!==![% #???#"""" ""#### | | ##" / #?#![*=![!= #???#"""" ""#??? | | ##"" =""#?#=%= #???#"""" ""#?? | | ## / "#?#*= k ###?#"""" ""#? | | ##"" / "#?# ""#"#"""" ""#? " | | ##" /""#?# """"#"""" "# " | | ##"" #?# ""#######" "" | | ######## "#?# ###?????#"!= "" | | ##!!! !# "#?# *%#########"x* ""# " | | ## [! * ! #?# !=i =!%[![ ""# " | | ## !!] #" " "#?# !%|%==h =%=[%[ #? | | ## ![ #""" ""#?# =%%%%%!%%%%=!![= ""#?? | | ###############?# *@==%=!!! %=%* ""#??? | | ################# =!! !=%/ =%! """# | | ]*!!=*=! !%=%* """""" | | !**! **==! """""" | | % =%[/ /= | | *!=!=! ==! | | [ = ! | | #""""#" | | = #????#" | | / #????#""" "" """"" | | ####### ####### ########## ;###????####### ##### | | ????? #????# #???# ##???????#" " | | ???"""" ????# #???# #????????##"" ""# | | ?" "" #???# " #???# #?????????#]" "!# | | " " #???# """ #???# #????????##"" ""# | | " " #???# """"" #???# #????????#" " | | " " #???# ""X"" #???# #????????##"" ""# | | " " #???# "" "" #???# #?????????# " "]# | | "" "? #???# #???# #?????????#"" ""# | | """"""? #???#########???# #????????#" """ " | | ?? ?? ?##???????????????# #????????#### "&" ### | | ?????????????????????????# #???????????#"###"#?? | | ??????????????????######## #???????????###?###?? | | ??????????????????"""""""" #????################ | | ?????????????????""" """"" #????# ##"""# | +----------------------------------------------------+ Best States ------------- Heat Dissipation 39 Energy Generation 15 Energy Capacity 265 Matter Stores 300 Matter Capacity 300 Sight Range 16 Terrain Scan Range 14 Terrain Scan Density 10 Additional Mass Support 6 Armor Coverage 800 Resistance: KI 20 Resistance: TH 20 Resistance: EX 20 Resistance: EM 20 Resistance: I 20 Resistance: S 20 Resistance: P 20 Evasion (%) 62 Recoil Reduction 2 Offensive Hacking 10 Authchip Count 8 Item Schematics ----------------- Imp. Medium Treads | -8/Recycling | Hacked Weapon Cycler | -8/Recycling | Hacked Hyp. Gauss Rifle | -8/Recycling | Hacked Imp. Target Analyzer | -8/Recycling | Hacked Adv. Terrain Scan Processor | -8/Recycling | Hacked EM Disruption Field | -8/Recycling | Hacked Robot Schematics ------------------ None Fabricated ------------ Nothing Alien Tech Used ----------------- None Achievements -------------- None Challenges ------------ None Game ------ Seed IonicFrostInjector Manual? 0 Play Time 01:20:30 Cumulative 616.8 hours Start 2025.01.08 @ 20:46:19 End 2025.01.09 @ 00:00:27 Sessions 1 Manual Loads 0 Difficulty Adventurer Special Mode None Game No. 116 Rogue 63 Adventurer 53 Explorer 0 Win Type - Total 26 Types 6/3/1/8/1/1/1/3/2 Lore% 74 Gallery% 89 Achievement% 82 Wizard Run 0 Options --------- Layout 0 ASCII 0 Keyboard 0 Movement Numpad Keybinds 0 Fullscreen 2 Font 18/X11 Map View 76x50 Zoom Use 0% Tactical HUD 1 Map Filters NONE Filters NONE Steam 1 RUN: 832aea86-d960-4aa3-bb21-32d207ddfc93